bitfinex/quotes_SOLUSD_20220208
["timestamp","ask_amount","ask_price","bid_price","bid_amount"]
[1644301441518,12.37775549,119.95,119.82,12.5098]
[1644301441818,12.5136,119.92,119.76,49.4355]
[1644301442016,10.02,119.91,119.76,49.4355]
[1644301442217,10.27,119.91,119.76,57.18554735]
[1644301442517,10.27,119.91,119.77,1.41668617]
[1644301442718,49.4494,119.9,119.78,12.5138]
[1644301442918,49.4494,119.9,119.79,1.30821745]
[1644301443117,49.4494,119.9,119.79,7.30821745]
[1644301443118,49.6994,119.9,119.79,7.30821745]
[1644301443321,49.4494,119.9,119.79,7.55821745]
[1644301444418,10.02,119.89,119.79,7.55821745]
[1644301444726,10.02,119.89,119.79,7.30821745]
[1644301445218,10.02,119.89,119.79,9.06364234]
[1644301445419,10.02,119.89,119.79,7.30821745]
[1644301445824,22.5365,119.89,119.79,7.30821745]
[1644301446320,22.5365,119.89,119.8,1.32234663]
[1644301446821,22.5365,119.89,119.8,1.57234663]
[1644301448221,22.5365,119.89,119.79,6.0]
[1644301448222,28.7865,119.89,119.77,23.1627]
[1644301448524,12.5191,119.86,119.75,12.5172]
[1644301448724,22.5391,119.86,119.76,6.0]
[1644301448923,22.5391,119.86,119.72,46.9346]
[1644301449122,45.8168,119.85,119.72,52.9346]
[1644301449326,22.5391,119.86,119.72,54.69533516]
[1644301449524,16.02,119.86,119.73,12.5194]
[1644301449725,16.02,119.86,119.73,24.66087]
[1644301449925,16.02,119.86,119.74,1.76073516]
[1644301450225,16.02,119.86,119.74,30.94793516]
[1644301450626,16.02,119.86,119.76,12.5164]
[1644301450824,16.02,119.86,119.76,12.7664]
[1644301451027,16.02,119.86,119.76,18.7664]
[1644301452228,10.02,119.86,119.76,18.7664]
[1644301455931,10.02,119.86,119.76,18.5164]
[1644301457230,10.02,119.86,119.76,18.7664]
[1644301459030,32.8622,119.86,119.76,18.7664]
[1644301460832,22.8422,119.86,119.77,1.76140127]
[1644301461031,22.8422,119.86,119.78,12.5157]
[1644301461234,24.8902,119.88,119.78,12.7657]
[1644301462133,24.8902,119.88,119.78,18.7657]
[1644301462535,22.5362,119.89,119.78,18.7657]
[1644301462734,1.18527668,119.9,119.78,20.52710127]
[1644301462934,352.3031212,119.91,119.78,31.71006009]
[1644301463534,352.3031212,119.91,119.82,12.5103]
[1644301463837,23.311,119.92,119.82,14.52170127]
[1644301464237,29.311,119.92,119.82,12.7603]
[1644301464637,29.311,119.92,119.82,18.7603]
[1644301464836,29.311,119.92,119.82,12.7603]
[1644301465636,29.561,119.92,119.82,12.7603]
[1644301466439,29.311,119.92,119.82,12.7603]
[1644301466638,41.43875549,119.92,119.82,0.25]
[1644301466842,41.68875549,119.92,119.8,12.7634]
[1644301467043,81.49469644,119.92,119.8,0.25]
[1644301467240,79.38694095,119.92,119.77,24.4427]
[1644301467642,79.38694095,119.92,119.77,32.20410127]
[1644301467848,43.00127668,119.92,119.8,12.5142]
[1644301468044,1.18527668,119.92,119.8,18.5142]
[1644301468244,22.6568,119.93,119.81,1.75685882]
[1644301468446,22.6568,119.93,119.8,29.3025]
[1644301468447,32.6768,119.93,119.8,29.3025]
[1644301468644,32.6768,119.93,119.8,29.5525]
[1644301468844,32.6768,119.93,119.81,1.75685882]
[1644301469050,32.6768,119.93,119.81,14.26965882]
[1644301469051,24.6365,119.92,119.81,14.26965882]
[1644301469245,24.6365,119.92,119.81,18.7628]
[1644301469545,34.6565,119.92,119.81,18.7628]
[1644301469744,34.9065,119.92,119.81,12.7628]
[1644301469946,34.6565,119.92,119.81,12.7628]
[1644301470146,34.6565,119.92,119.81,14.51965882]
[1644301470446,34.9065,119.92,119.81,12.7628]
[1644301470647,34.9065,119.92,119.81,18.7628]
[1644301470846,47.4193,119.92,119.81,18.7628]
[1644301471046,47.4193,119.92,119.81,12.7628]
[1644301474570,47.4193,119.92,119.81,18.7628]
[1644301475172,47.4193,119.92,119.81,12.7628]
[1644301476571,47.4193,119.92,119.81,18.7628]
[1644301476772,47.4193,119.92,119.81,12.7628]
[1644301477575,53.4193,119.92,119.81,12.7628]
[1644301477776,55.52705549,119.92,119.81,12.7628]
[1644301477975,53.4193,119.92,119.81,0.25]
[1644301478175,55.52705549,119.92,119.8,12.515]
[1644301478376,71.46018532,119.92,119.8,12.515]
[1644301478778,71.46018532,119.92,119.78,23.7306]
[1644301478977,1.5071678,119.91,119.78,23.7306]
[1644301479177,12.5176,119.88,119.78,23.7306]
[1644301479479,22.5376,119.88,119.78,23.7306]
[1644301479680,28.7876,119.88,119.78,29.7306]
[1644301480279,28.7876,119.88,119.78,29.9806]
[1644301480879,28.7876,119.88,119.78,42.4978]
[1644301481680,28.7876,119.88,119.78,36.4978]
[1644301481881,28.7876,119.88,119.78,42.4978]
[1644301482280,28.7876,119.88,119.78,36.4978]
[1644301482681,28.7876,119.88,119.78,42.4978]
[1644301483482,28.5376,119.88,119.78,18.7672]
[1644301483684,16.02,119.88,119.78,18.7672]
[1644301483881,10.02,119.88,119.78,18.7672]
[1644301484484,10.02,119.88,119.78,12.7672]
[1644301484687,10.02,119.88,119.78,14.52405882]
[1644301484884,49.2591,119.89,119.78,20.52405882]
[1644301487485,11.20527668,119.92,119.78,21.68701764]
[1644301487686,24.4219,119.93,119.79,24.65115882]
[1644301487886,1.18527668,119.94,119.83,12.5092]
[1644301488086,49.02597668,119.96,119.84,10.02]
[1644301488286,47.8407,119.96,119.84,12.02231098]
[1644301488485,0.45563656,119.97,119.85,1.75231098]
[1644301488685,0.45563656,119.97,119.85,31.24051098]
[1644301488885,0.45563656,119.97,119.85,31.49051098]
[1644301489084,0.45563656,119.97,119.86,1.75231098]
[1644301489288,0.45563656,119.97,119.86,2.00231098]
[1644301489487,0.45563656,119.97,119.86,20.15631098]
[1644301489690,0.45563656,119.97,119.87,1.75231098]
[1644301489887,0.45563656,119.97,119.87,14.25691098]
[1644301490089,0.45563656,119.97,119.87,41.3972]
[1644301495693,2.10775549,119.96,119.87,41.1472]
[1644301495994,24.63625549,119.96,119.84,23.4139]
[1644301496194,48.74185549,119.96,119.84,23.4139]
[1644301496596,46.3841,119.96,119.84,23.4139]
[1644301496794,46.6341,119.96,119.8,24.0213]
[1644301496993,12.5127,119.92,119.81,12.5125]
[1644301497196,31.6947,119.92,119.81,12.5125]
[1644301497397,31.9447,119.92,119.81,12.5125]
[1644301497594,21.6747,119.92,119.81,12.5125]
[1644301497795,21.9247,119.92,119.81,12.5125]
[1644301498094,21.6747,119.92,119.81,12.5125]
[1644301498293,12.7627,119.92,119.81,12.5125]
[1644301498896,24.7727,119.92,119.81,12.5125]
[1644301499096,12.01,119.92,119.81,18.5125]
[1644301499394,12.01,119.92,119.81,20.26481098]
[1644301499596,24.7735,119.93,119.81,20.26481098]
[1644301499795,24.7735,119.93,119.81,20.51481098]
[1644301500200,24.3879,119.94,119.81,20.51481098]
[1644301500395,36.8976,119.94,119.81,20.51481098]
[1644301500794,49.1576,119.94,119.81,42.1899]
[1644301500993,55.1576,119.94,119.81,42.1899]
[1644301501194,57.26535549,119.94,119.81,42.1899]
[1644301501994,57.26535549,119.94,119.81,36.1899]
[1644301502196,3.5129006,119.88,119.81,35.9399]
[1644301503398,3.5129006,119.88,119.8,24.0213]
[1644301503596,3.5129006,119.83,119.8,24.0213]
[1644301503797,3.5129006,119.83,119.81,6.06439994]
[1644301504798,3.5129006,119.83,119.81,6.31439994]
[1644301505201,3.5129006,119.83,119.81,12.31439994]
[1644301505800,3.5129006,119.83,119.81,24.82719994]
[1644301508325,3.5129006,119.83,119.78,41.7095]
[1644301508525,13.5069006,119.83,119.76,1.16295882]
[1644301508724,13.5069006,119.83,119.75,1.18695882]
[1644301508926,13.5069006,119.83,119.76,12.5173]
[1644301509427,3.5129006,119.83,119.76,12.5173]
[1644301509626,3.5129006,119.83,119.77,1.74355998]
[1644301509825,113.1,119.92,119.77,42.35807797]
[1644301510028,113.1,119.92,119.78,58.5353]
[1644301510230,113.1,119.92,119.79,12.01]
[1644301510431,113.1,119.92,119.8,22.7901]
[1644301510628,113.1,119.92,119.8,28.7901]
[1644301510826,113.1,119.92,119.8,42.79365998]
[1644301511026,23.7522,119.91,119.81,1.74355998]
[1644301511228,113.1,119.92,119.82,12.5081]
[1644301511429,197.55537668,119.96,119.82,24.5181]
[1644301511626,238.0747,119.96,119.83,26.47015998]
[1644301511828,244.3247,119.96,119.83,0.25]
[1644301512028,245.25997668,119.96,119.83,0.25]
[1644301512229,12.5097,119.95,119.83,0.25]
[1644301512430,34.6358,119.94,119.83,0.25]
[1644301513031,34.6358,119.94,119.82,18.7626]
[1644301513230,34.8858,119.94,119.82,18.7626]
[1644301513732,22.6258,119.94,119.82,18.7626]
[1644301513933,22.6258,119.94,119.82,20.50615998]
[1644301514833,12.01,119.93,119.82,18.5126]
[1644301515133,12.01,119.93,119.82,12.5126]
[1644301515335,12.26,119.93,119.82,12.5126]
[1644301515534,12.26,119.93,119.82,18.5126]
[1644301516035,12.26,119.93,119.82,12.5126]
[1644301516834,12.5132,119.91,119.82,12.7626]
[1644301517235,21.4672,119.91,119.82,18.7626]
[1644301517434,21.4672,119.91,119.82,12.7626]
[1644301517843,21.4672,119.91,119.82,18.7626]
[1644301518635,21.4672,119.91,119.82,12.7626]
[1644301518835,8.704,119.91,119.82,18.7626]
[1644301519036,8.704,119.91,119.82,14.50556402]
[1644301519234,8.954,119.91,119.82,12.7626]
[1644301519435,18.974,119.91,119.82,12.7626]
[1644301519934,18.974,119.91,119.82,6.25]
[1644301520137,18.974,119.91,119.82,0.25]
[1644301520338,18.974,119.91,119.81,18.7638]
[1644301520838,31.4869,119.91,119.81,18.7638]
[1644301521538,31.2369,119.91,119.81,12.5138]
[1644301521739,0.30816373,119.9,119.79,1.16295882]
[1644301521939,12.5192,119.87,119.75,1.18695882]
[1644301522139,23.0624,119.86,119.76,1.16295882]
[1644301522340,23.45882241,119.86,119.76,1.16295882]
[1644301522541,23.45882241,119.86,119.77,1.16295882]
[1644301522941,23.45882241,119.86,119.77,1.41295882]
[1644301523139,23.45882241,119.86,119.77,0.25]
[1644301523339,23.45882241,119.86,119.77,6.0]
[1644301523539,23.45882241,119.86,119.77,18.7675]
[1644301524438,23.45882241,119.86,119.77,12.7675]
[1644301524939,0.39642241,119.86,119.77,13.93045882]
[1644301525139,0.39642241,119.86,119.8,12.5116]
[1644301525343,0.39642241,119.86,119.8,12.7616]
[1644301525542,0.39642241,119.86,119.8,15.66300432]
[1644301525941,0.39642241,119.86,119.8,45.19620432]
[1644301526139,0.39642241,119.86,119.8,43.45775882]
[1644301526340,0.39642241,119.86,119.8,45.19620432]
[1644301527042,0.39642241,119.86,119.81,1.16295882]
[1644301527240,0.39642241,119.86,119.82,12.5091]
[1644301527739,0.39642241,119.86,119.82,18.7591]
[1644301529444,0.39642241,119.86,119.82,20.49965906]
[1644301529645,0.39642241,119.86,119.82,21.66261788]
[1644301530346,0.39642241,119.86,119.83,24.9919]
[1644301530547,0.39642241,119.86,119.84,12.5076]
[1644301530753,0.39642241,119.86,119.84,14.49815906]
[1644301531049,0.39642241,119.86,119.84,18.5076]
[1644301531248,0.39642241,119.86,119.84,12.5076]
[1644301531662,0.39642241,119.86,119.8,1.16295882]
[1644301531848,8.82042241,119.86,119.79,1.16295882]
[1644301532049,8.82042241,119.86,119.8,1.16295882]
[1644301532247,0.39642241,119.86,119.81,1.16295882]
[1644301532648,0.39642241,119.86,119.81,18.5115]
[1644301532848,0.39642241,119.86,119.79,1.16295882]
[1644301533048,10.58542241,119.86,119.78,1.16295882]
[1644301533648,10.83542241,119.86,119.77,1.16295882]
[1644301533947,10.83542241,119.86,119.76,1.16295882]
[1644301534447,34.58002241,119.86,119.76,1.16295882]
[1644301534848,34.58002241,119.86,119.77,1.16295882]
[1644301535048,34.58002241,119.86,119.77,13.67865882]
[1644301535250,34.58002241,119.86,119.77,13.92865882]
[1644301535648,34.58002241,119.86,119.77,19.92865882]
[1644301536750,34.83002241,119.86,119.77,1.16295882]
[1644301536949,34.83002241,119.86,119.76,1.16295882]
[1644301537149,40.58002241,119.86,119.76,1.16295882]
[1644301537351,40.58002241,119.86,119.75,13.70465882]
[1644301537551,34.58002241,119.86,119.76,1.16295882]
[1644301537951,34.58002241,119.86,119.75,13.70465882]
[1644301538153,40.58002241,119.86,119.75,13.70465882]
[1644301538752,50.85002241,119.86,119.75,1.18695882]
[1644301538952,50.60002241,119.86,119.75,1.18695882]
[1644301539152,50.85002241,119.86,119.75,1.18695882]
[1644301539554,40.66102241,119.86,119.75,1.43695882]
[1644301539756,34.41102241,119.86,119.75,9.1731325]
[1644301539956,34.41102241,119.86,119.76,1.16295882]
[1644301540154,34.41102241,119.86,119.76,7.16295882]
[1644301540355,34.41102241,119.86,119.77,1.16295882]
[1644301540655,34.41102241,119.86,119.77,7.16295882]
[1644301540855,34.41102241,119.86,119.77,9.1491325]
[1644301541458,24.39102241,119.86,119.77,21.6648325]
[1644301541684,24.39102241,119.86,119.78,1.16295882]
[1644301541882,0.39642241,119.86,119.78,1.16295882]
[1644301542082,0.39642241,119.86,119.79,1.73617368]
[1644301542283,0.39642241,119.86,119.79,1.98617368]
[1644301542582,0.39642241,119.86,119.79,20.49947368]
[1644301542782,24.5821,119.89,119.77,25.93855882]
[1644301542783,10.02,119.88,119.77,25.93855882]
[1644301542982,10.02,119.88,119.78,0.25]
[1644301543183,10.02,119.88,119.77,1.16295882]
[1644301543384,24.78,119.87,119.76,2.8991325]
[1644301543690,24.78,119.87,119.76,15.4158325]
[1644301543890,24.78,119.87,119.77,1.16295882]
[1644301544292,24.78,119.87,119.77,2.89928342]
[1644301544493,24.78,119.87,119.77,3.14928342]
[1644301544890,24.78,119.87,119.77,1.7363246]
[1644301545492,24.78,119.87,119.77,21.41468342]
[1644301545687,24.78,119.87,119.78,1.16295882]
[1644301546093,24.78,119.87,119.78,1.7363246]
[1644301546295,24.78,119.87,119.78,0.25]
[1644301546488,113.208,119.9,119.78,14.2509246]
[1644301546688,119.208,119.9,119.78,20.2509246]
[1644301546888,119.208,119.9,119.78,21.41388342]
[1644301547289,143.9136,119.9,119.78,21.41388342]
[1644301547688,143.9136,119.9,119.78,21.66388342]
[1644301548289,144.1636,119.9,119.78,21.66388342]
[1644301548589,144.1636,119.9,119.78,20.5009246]
[1644301549092,144.1636,119.9,119.78,21.66388342]
[1644301549289,144.1636,119.9,119.78,43.7082246]
[1644301549991,144.1636,119.9,119.78,20.2509246]
[1644301550190,143.9136,119.9,119.78,21.41388342]
[1644301551093,144.1636,119.9,119.78,13.67755882]
[1644301551392,144.1636,119.9,119.78,12.5146]
[1644301551792,157.57435549,119.9,119.77,460.04063807]
[1644301551991,158.75963217,119.9,119.76,12.5167]
[1644301552191,169.16797668,119.9,119.75,1.16295882]
[1644301552490,167.9827,119.9,119.78,1.73075819]
[1644301552692,167.9827,119.9,119.78,14.24585819]
[1644301552893,155.4666,119.9,119.78,14.24585819]
[1644301553092,143.9136,119.9,119.79,1.73075819]
[1644301553292,144.1636,119.9,119.79,25.97635819]
[1644301553591,144.1636,119.9,119.79,26.22635819]
[1644301553993,144.1636,119.9,119.8,1.73075819]
[1644301554296,144.1636,119.9,119.8,1.98075819]
[1644301554693,144.1636,119.9,119.8,14.49385819]
[1644301554895,143.9136,119.9,119.81,1.73075819]
[1644301555096,54.3923,119.9,119.81,1.73075819]
[1644301555294,54.3923,119.9,119.81,1.98075819]
[1644301555996,54.3923,119.9,119.82,1.73075819]
[1644301556196,54.3923,119.9,119.82,1.98075819]
[1644301556397,54.3923,119.9,119.82,14.49195819]
[1644301556598,54.3923,119.9,119.82,20.49195819]
[1644301556798,54.3923,119.9,119.8,469.24694343]
[1644301556799,0.31176533,119.88,119.8,1.16295882]
[1644301556997,10.02,119.87,119.78,1.16295882]
[1644301557198,24.247,119.87,119.78,1.16295882]
[1644301557396,24.247,119.87,119.76,1.16295882]
[1644301557597,22.9155,119.86,119.76,1.16295882]
[1644301557797,32.9355,119.86,119.76,1.16295882]
[1644301558096,38.9355,119.86,119.76,7.30288882]
[1644301558296,39.1855,119.86,119.75,1.18695882]
[1644301558697,39.1855,119.86,119.75,0.024]
[1644301559797,51.7057,119.86,119.75,0.024]
[1644301560597,51.7057,119.86,119.75,1.18695882]
[1644301560799,51.7057,119.86,119.75,1.43695882]
[1644301560998,51.7057,119.86,119.75,0.024]
[1644301561398,12.5229,119.83,119.75,0.024]
[1644301561600,33.4565,119.82,119.74,1.16295882]
[1644301562498,33.4565,119.82,119.74,1.41295882]
[1644301562700,33.4565,119.82,119.74,1.16295882]
[1644301564403,33.7065,119.82,119.74,1.16295882]
[1644301564802,33.7065,119.82,119.73,1.16295882]
[1644301565201,46.2303,119.82,119.73,7.16295882]
[1644301565401,52.2303,119.82,119.73,1.16295882]
[1644301565602,52.2303,119.82,119.73,7.16295882]
[1644301566701,52.2303,119.82,119.72,1.16295882]
[1644301566911,39.7065,119.82,119.72,1.16295882]
[1644301567203,39.4565,119.82,119.73,1.16295882]
[1644301567403,33.4565,119.82,119.73,474.31142799]
[1644301568105,34.3656,119.85,119.74,1.16295882]
[1644301568305,24.3456,119.85,119.74,1.41295882]
[1644301568704,24.3456,119.85,119.75,1.16295882]
[1644301568905,23.8465,119.84,119.75,1.16295882]
[1644301569104,23.8465,119.84,119.76,12.5172]
[1644301569304,23.8465,119.84,119.76,12.7672]
[1644301569707,23.8465,119.84,119.76,18.7672]
[1644301570007,23.8465,119.84,119.76,12.5172]
[1644301571308,23.8465,119.84,119.76,12.7672]
[1644301572109,24.0965,119.84,119.76,18.7672]
[1644301572408,23.8465,119.84,119.76,18.5172]
[1644301572607,29.8465,119.84,119.76,18.5172]
[1644301572806,23.8465,119.84,119.76,18.5172]
[1644301573006,23.8465,119.84,119.76,19.68015882]
[1644301573209,24.3456,119.85,119.76,19.68015882]
[1644301573507,10.02,119.89,119.8,12.5132]
[1644301573708,6.0,119.89,119.8,12.7632]
[1644301573908,24.9631,119.9,119.8,18.7632]
[1644301574309,32.944,119.89,119.8,18.5132]
[1644301574510,43.69,119.89,119.8,351.44282327]
[1644301575110,49.69,119.89,119.8,351.44282327]
[1644301575611,32.944,119.89,119.8,357.44282327]
[1644301575811,32.944,119.89,119.8,369.95642327]
[1644301576013,32.944,119.89,119.8,370.20642327]
[1644301576712,38.944,119.89,119.8,370.20642327]
[1644301576910,39.194,119.89,119.8,370.20642327]
[1644301577510,39.194,119.89,119.87,497.36890958]
[1644301577712,22.33439994,119.89,119.87,497.36890958]
[1644301577912,16.27,119.89,119.87,497.36890958]
[1644301578112,6.0,119.89,119.87,497.36890958]
[1644301578312,39.37,119.92,119.87,497.61890958]
[1644301578513,33.37,119.92,119.87,497.61890958]
[1644301579313,33.37,119.92,119.87,497.36890958]
[1644301579514,33.37,119.92,119.87,497.61890958]
[1644301579815,23.35,119.92,119.87,497.61890958]
[1644301580015,10.02,119.94,119.87,497.61890958]
[1644301580214,135.1853,119.96,119.87,497.61890958]
[1644301580415,33.2458,119.96,119.87,497.61890958]
[1644301580815,23.2258,119.96,119.87,497.61890958]
[1644301581016,23.2258,119.96,119.87,510.12540958]
[1644301581216,23.2258,119.96,119.87,516.12540958]
[1644301581625,23.2258,119.96,119.87,510.12540958]
[1644301581820,23.2258,119.96,119.87,509.87540958]
[1644301582017,10.02,119.95,119.82,1.16295882]
[1644301582217,10.02,119.95,119.85,12.5083]
[1644301582420,6.0,119.95,119.85,12.5083]
[1644301582617,29.2258,119.96,119.85,18.7583]
[1644301582840,23.2258,119.96,119.85,18.7583]
[1644301583217,35.2558,119.96,119.85,12.7583]
[1644301583417,41.2558,119.96,119.85,12.5083]
[1644301584016,41.5058,119.96,119.85,12.5083]
[1644301584818,41.5058,119.96,119.85,12.7583]
[1644301585020,41.5058,119.96,119.85,12.5083]
[1644301585418,113.1,119.95,119.82,41.6958]
[1644301585620,12.03,119.94,119.82,41.6958]
[1644301585921,24.903,119.93,119.81,24.7803]
[1644301586118,42.933,119.93,119.81,24.7803]
[1644301586319,43.183,119.93,119.81,24.7803]
[1644301586718,43.183,119.93,119.82,24.6192]
[1644301587318,57.80225549,119.93,119.78,42.89825882]
[1644301587524,65.76525549,119.93,119.78,42.89825882]
[1644301587720,63.6575,119.93,119.78,48.89825882]
[1644301587921,63.6575,119.93,119.78,6.024]
[1644301588123,65.76525549,119.93,119.78,0.024]
[1644301588322,65.76525549,119.93,119.78,6.024]
[1644301588721,150.33,119.92,119.79,0.024]
[1644301588922,12.515,119.9,119.79,0.024]
[1644301589132,36.3637,119.89,119.78,0.024]
[1644301589321,36.6137,119.89,119.77,0.024]
[1644301589724,42.6137,119.89,119.77,0.024]
[1644301589926,55.1295,119.89,119.77,0.024]
[1644301590133,54.8795,119.89,119.77,0.024]
[1644301590546,42.3637,119.89,119.77,0.024]
[1644301590948,42.3637,119.89,119.77,12.5402]
[1644301591149,42.3637,119.89,119.78,0.024]
[1644301591448,54.8798,119.89,119.78,0.024]
[1644301591848,42.3637,119.89,119.78,0.024]
[1644301592247,36.3637,119.89,119.78,0.024]
[1644301592652,36.3637,119.89,119.78,12.5396]
[1644301592849,36.3637,119.89,119.79,0.024]
[1644301593050,6.0,119.89,119.79,0.024]
[1644301593452,6.0,119.92,119.79,0.024]
[1644301593751,12.03,119.9,119.79,1.75130611]
[1644301594051,12.03,119.9,119.79,14.24140611]
[1644301594253,18.28,119.9,119.79,20.26540611]
[1644301594753,41.4263,119.9,119.79,44.31560611]
[1644301594951,41.4263,119.9,119.79,42.5883]
[1644301595155,53.941,119.9,119.79,42.5883]
[1644301595352,41.4263,119.9,119.79,44.31560611]
[1644301595553,41.4263,119.9,119.79,42.5883]
[1644301596762,53.9411,119.9,119.79,42.5883]
[1644301596967,41.4263,119.9,119.79,44.31560611]
[1644301597758,41.4263,119.9,119.79,42.5883]
[1644301598158,41.4263,119.9,119.79,42.3383]
[1644301599059,41.4263,119.9,119.79,18.5381]
[1644301599458,41.4263,119.9,119.79,18.7881]
[1644301599659,53.941,119.9,119.79,18.7881]
[1644301599860,47.941,119.9,119.79,18.7881]
[1644301600262,53.941,119.9,119.79,6.024]
[1644301600666,56.04875549,119.9,119.79,0.024]
[1644301600865,12.5187,119.86,119.77,0.024]
[1644301601067,35.3845,119.85,119.77,0.024]
[1644301601267,35.6345,119.85,119.75,23.93075882]
[1644301601661,41.6345,119.85,119.75,24.18075882]
[1644301601861,41.3845,119.85,119.75,24.18075882]
[1644301602260,41.6345,119.85,119.75,23.93075882]
[1644301602460,41.6345,119.85,119.72,25.60510611]
[1644301602461,41.6345,119.85,119.74,1.16295882]
[1644301602661,64.3344,119.85,119.74,0.024]
[1644301603864,76.8542,119.85,119.74,12.5454]
[1644301604064,76.8542,119.85,119.74,14.27270611]
[1644301604264,76.8542,119.85,119.74,14.52270611]
[1644301604665,64.0844,119.85,119.74,14.52270611]
[1644301604866,64.0844,119.85,119.74,21.68566493]
[1644301604867,58.0844,119.85,119.74,21.68566493]
[1644301605068,64.0844,119.85,119.74,21.68566493]
[1644301605265,75.9004,119.85,119.74,20.52270611]
[1644301605469,75.9004,119.85,119.74,12.7954]
[1644301605666,75.9004,119.85,119.75,1.72730611]
[1644301605966,69.9004,119.85,119.78,12.5166]
[1644301606366,57.8704,119.85,119.78,14.49390611]
[1644301606566,57.8704,119.85,119.78,12.7666]
[1644301606867,69.9004,119.85,119.76,0.024]
[1644301607065,69.9004,119.85,119.75,49.47330611]
[1644301607365,69.9004,119.85,119.76,1.72730611]
[1644301607566,69.9004,119.85,119.76,1.75130611]
[1644301607866,69.9004,119.85,119.77,12.5185]
[1644301608566,69.9004,119.85,119.77,12.7685]
[1644301608767,69.9004,119.85,119.77,14.49580611]
[1644301609066,69.9004,119.85,119.77,12.7685]
[1644301609272,69.9004,119.85,119.77,14.49580611]
[1644301611468,58.0844,119.85,119.77,14.49580611]
[1644301611869,58.0844,119.85,119.77,12.5185]
[1644301612070,64.0844,119.85,119.76,0.024]
[1644301612271,73.4594,119.85,119.75,12.5203]
[1644301612469,73.4594,119.85,119.75,0.024]
[1644301612671,73.4594,119.85,119.76,1.72569296]
[1644301612870,67.4594,119.85,119.75,0.024]
[1644301613270,58.0844,119.85,119.75,0.024]
[1644301613669,64.0844,119.85,119.75,0.024]
[1644301613869,64.0844,119.85,119.76,12.5194]
[1644301614072,64.0844,119.85,119.76,14.24509296]
[1644301614270,64.0844,119.85,119.76,14.49509296]
[1644301614871,64.0844,119.85,119.76,14.51909296]
[1644301615270,64.0844,119.85,119.76,12.5434]
[1644301616073,64.3344,119.85,119.76,12.5434]
[1644301616274,64.0844,119.85,119.76,12.5434]
[1644301616676,58.0844,119.85,119.76,14.26909296]
[1644301617276,58.0844,119.85,119.76,12.5434]
[1644301617476,64.0844,119.85,119.76,0.024]
[1644301617675,64.3344,119.85,119.74,12.5442]
[1644301617881,74.5864,119.85,119.73,1.16295882]
[1644301618080,74.5864,119.85,119.74,0.024]
[1644301618282,68.5864,119.85,119.74,2.91265178]
[1644301618482,46.0544,119.85,119.74,15.40895178]
[1644301618681,46.0544,119.85,119.75,2.88865178]
[1644301618879,12.03,119.89,119.75,2.91265178]
[1644301619080,18.03,119.89,119.76,25.19249296]
[1644301619281,18.03,119.89,119.76,26.60545178]
[1644301619479,18.03,119.89,119.77,1.72569296]
[1644301619680,18.03,119.89,119.78,12.5399]
[1644301619884,18.03,119.89,119.79,0.024]
[1644301620483,23.4341,119.88,119.79,0.024]
[1644301620683,12.03,119.87,119.78,0.25]
[1644301620884,24.5489,119.87,119.78,0.25]
[1644301621085,23.3559,119.86,119.78,0.25]
[1644301621283,23.3559,119.86,119.77,0.024]
[1644301621284,12.03,119.85,119.77,0.024]
[1644301621487,12.03,119.85,119.75,24.43045882]
[1644301621684,18.03,119.85,119.75,24.43045882]
[1644301621884,12.03,119.85,119.77,12.5172]
[1644301622084,23.3559,119.86,119.77,18.5172]
[1644301622283,35.6652,119.87,119.78,1.72657993]
[1644301622484,35.6652,119.87,119.78,0.024]
[1644301622687,35.6652,119.87,119.78,0.25]
[1644301622892,35.6652,119.87,119.78,0.274]
[1644301623088,35.6652,119.87,119.79,12.5152]
[1644301623288,35.6652,119.87,119.79,12.7652]